Cogmind - Beta 16 @@@ ROGUE MODE // 2025.10.30 @ 00:42:45 Player: DrZettl Result: Destroyed by WE-2XR(R) with Subdweller Laser Performance ------------- Evolutions (0) 0 Regions Visited (2) 400 Robots Destroyed (26) 130 Value Destroyed (573) 573 Prototype IDs (2) 40 Alien Tech Used (0) 0 Bonus (0) 0 TOTAL SCORE: 1143 Bonus ------- None Cogmind --------- Core Integrity 0/250 Matter 300/300 Energy 265/265 System Corruption 0% Temperature Cool (6) Movement Core (350) Ox6 Location -10/Subcaves Parts ------- > --- POWER (1) -------- Reinforced Ion Engine > --- PROPULSION (2) --- (None) > --- UTILITY (2) ------ Small Storage Unit Sensor Array > --- WEAPON (2) ------- Medium Laser Particle Gun > --- INVENTORY (8) ---- Reinforced Ion Engine Heat Sink Seismic Detector Light Armor Plating Light Armor Plating Peak State ------------ > --- POWER ------------ Reinforced Ion Engine > --- PROPULSION ------- Wheel Wheel > --- UTILITY ---------- Small Storage Unit Sensor Array > --- WEAPON ----------- Heavy EM Pulse Gun Medium Laser > --- INVENTORY -------- Reinforced Ion Engine Wheel Heat Sink Seismic Detector Light Armor Plating Light Armor Plating Particle Gun Light Assault Rifle [Rating: 10] Favorites ----------- Power Ion Engine Engine Ion Engine Propulsion Light Treads Treads Light Treads Wheel Wheel Hover Unit Backup Propulsion I Flight Unit Flight Unit Utility Small Storage Unit Device Sensor Array Storage Small Storage Unit Protection Light Armor Plating Weapon Light Assault Rifle Energy Gun Medium Laser Ballistic Gun Light Assault Rifle Build | -11 -10 -10 ------- Run | Yrd Mat Sub Slots Evolved . | . . . Power . | . . . Propulsion . | . . . Utility . | . . . Weapon . | . . . Parts Attached 23 | 7 14 2 Power 4 | 1 3 . Engine 4 | 1 3 . Core . | . . . Reactor . | . . . Propulsion 7 | 2 4 1 Treads 3 | 2 1 . Leg . | . . . Wheel 3 | . 2 1 Hover . | . . . Flight 1 | . 1 . Utility 5 | 2 3 . Device 2 | 1 1 . Storage 2 | 1 1 . Processor . | . . . Hackware . | . . . Protection 1 | . 1 . Artifact . | . . . Weapon 7 | 2 4 1 Energy Gun 5 | 1 3 1 Energy Cannon . | . . . Ballistic Gun 2 | 1 1 . Ballistic Cannon . | . . . Launcher . | . . . Special Weapon . | . . . Impact Weapon . | . . . Slashing Weapon . | . . . Piercing Weapon . | . . . Special Melee Weapon . | . . . Unidentified Prototypes . | . . . Parts Lost 8 | . 4 4 Power 1 | . 1 . Propulsion 5 | . 2 3 Utility . | . . . Weapon 2 | . 1 1 Highest Loss Streak 2 | . 1 2 To Critical Strikes . | . . . Average Backups 6 | 1 6 6 Power . | . . 1 Propulsion . | . . . Utility 3 | . 3 4 Weapon 1 | . 1 . Tool/Special . | . . . Unused Backups 5 | . 1 4 Power 2 | . 1 1 Propulsion . | . . . Utility 3 | . . 3 Weapon . | . . . Tool/Special . | . . . Average Slot Usage (%) 95 | . 96 94 Engine 13 | . 13 14 Treads 11 | . 14 . Wheel 9 | . 5 24 Hover 1 | . 2 . Flight 1 | . 2 . Device 14 | . 14 14 Storage 13 | . 13 14 Energy Gun 11 | . 8 26 Ballistic Gun 15 | . 19 . Peak Build Rating 10 | 7 10 10 Average Rating 7 | 5 7 8 On Entrance 5 | . 7 10 Avg Prop Armor Cover (%) 6 | . 6 . Naked Turns . | . . . Heaviest Build 88 | 14 88 21 Greatest Support 40 | 40 40 20 Greatest Overweight (x) 6 | . 4 6 Average Overweight (x) . | . . 1 Largest Inventory Capacity 25 | 8 25 8 Average Capacity 7 | 7 7 8 Most Carried 8 | 2 8 8 Average Carried 6 | 1 6 6 Final Capacity 8 | 8 8 8 Final Carried 8 | 2 8 5 Class Distribution -------------------- 100% | Mutant Dominant Class ---------------- Mutant | -10/Materials Mutant | -10/Subcaves Resources | -11 -10 -10 ----------- Run | Yrd Mat Sub Matter Collected 664 | 196 440 28 Remotely . | . . . Salvage Created 917 | 57 860 . Parts 53 | 6 47 . Haulers Intercepted 1 | . 1 . Recyclers Shooed 1 | . 1 . Parts Field Recycled . | . . . Retrieved Matter . | . . . Parts Self-Destructed 4 | . . 4 Prevented . | . . . Parts Restored . | . . . Kills | -11 -10 -10 ------- Run | Yrd Mat Sub Combat Hostiles Destroyed 15 | . 15 . Guns 13 | . 13 . AOE 2 | . 2 . Classes Destroyed 8 | 1 7 . Worker 1 | . 1 . Tunneler 2 | 2 . . Hauler 1 | . 1 . Recycler 2 | . 2 . Operator 3 | . 3 . Watcher 2 | . 2 . Swarmer 3 | . 3 . Grunt 12 | . 12 . Best Kill Streak 3 | 1 3 . Combat Bots Only 3 | . 3 . Max Kills in Single Turn 2 | 1 2 . Gunslinging 1 | . 1 . Exploded 2 | . 2 . Melee . | . . . Uniques/NPCs Destroyed . | . . . Combat | -11 -10 -10 -------- Run | Yrd Mat Sub Hostile Shots Fired 133 | . 111 22 Missed 35 | . 30 5 Hits 98 | . 81 17 Projectile 98 | . 81 17 Damage Taken 1327 | . 977 350 Core 272 | . 168 104 Absorbed by Shields . | . . . Core Remaining (%) 100 | 100 . . Volleys Fired 155 | 10 123 22 Largest 2 | 2 2 2 Hottest 95 | 70 70 95 Shots Fired 305 | 20 241 44 Gun 305 | 20 241 44 Cannon . | . . . Launcher . | . . . Special . | . . . Kinetic 214 | 10 204 . Thermal 56 | 10 24 22 Explosive . | . . . Electromagnetic 35 | . 13 22 Robot Hit Streak 10 | 4 10 . Robot Miss Streak 5 | 1 5 . Penetration Max . | . . . Secondary Targets 1 | . 1 . Max Gunslinging Chain 1 | . 1 . Shots Hit Robots 155 | 13 142 . Core Hits 61 | 4 57 . Critical Kills . | . . . Critical Parts Destroyed . | . . . Critical Strikes 6 | 3 3 . Burn 6 | 3 3 . Melee Attacks . | . . . Impact . | . . . Slashing . | . . . Piercing . | . . . Sneak Attacks . | . . . Combat Hostiles . | . . . Follow-up Attacks . | . . . Damage Inflicted 1553 | 140 1413 . Guns 1488 | 140 1348 . Cannons . | . . . Explosions 55 | . 55 . Melee . | . . . Ramming 10 | . 10 . Kinetic 1095 | 54 1041 . Thermal 377 | 86 291 . Explosive . | . . . Electromagnetic 71 | . 71 . Impact . | . . . Slashing . | . . . Piercing . | . . . Highest Corruption . | . . . Average Corruption . | . . . Corruption Purged . | . . . Corruption Blocked . | . . . Overload Shots . | . . . Overflow Damage . | . . . Projectiles . | . . . Explosions . | . . . Melee . | . . . Knockbacks . | . . . Impact . | . . . Kinetic . | . . . Secondary . | . . . Self-Inflicted Damage 3 | . 3 . Shots . | . . . Rammed 5 | . 5 . Targets Rammed 5 | . 5 . Kicked . | . . . Crushed . | . . . Highest Temperature 130 | 90 130 26 Average Temperature 47 | 36 50 13 Received Heat Transfer 477 | . 429 48 Siege Activations . | . . . Martial Activations . | . . . Shielding Activations . | . . . Robots Disrupted . | . . . Combat Hostiles . | . . . Robots Corrupted . | . . . Combat Hostiles . | . . . Parts Fried . | . . . Impact Corruptions . | . . . Robots Melted . | . . . Combat Hostiles . | . . . Parts Melted . | . . . Heat Transferred 1456 | 481 975 . Parts Sabotaged . | . . . Parts Stolen . | . . . Parts Stripped . | . . . Power Chain Reactions 1 | . 1 . Alert | -11 -10 -10 ------- Run | Yrd Mat Sub Maximum Alert Level . | . . . Low Security (%) 100 | 100 100 . Level 1 . | . . . Level 2 . | . . . Level 3 . | . . . Level 4 . | . . . Level 5 . | . . . High Security . | . . . Max Security . | . . . Peak Influence 166 | 5 166 . Initial . | . . . Average 52 | . 55 . Influence Increases 540 | 10 530 . Destroy 0b10 Robot/C 300 | . 300 . Destroy 0b10 Robot/NC 55 | 10 45 . Destroy Leader 76 | . 76 . Successful Hack 61 | . 61 . Destroy Structure 3 | . 3 . Lose Combat Pursuer 45 | . 45 . Influence Decreases 540 | 10 381 149 Entered New Map 73 | . . 73 Time Decay 447 | 10 361 76 Lost Part 20 | . 20 . Squads Dispatched 5 | . 5 . Investigation 2 | . 2 . Extermination . | . . . Reinforcement 3 | . 3 . Assault . | . . . Garrison . | . . . Intercept . | . . . Searches Triggered . | . . . Construction Impeded . | . . . Haulers Reinforced . | . . . Active Scanning Responses . | . . . Cargo Convoy Interrupts . | . . . Stealth | -11 -10 -10 --------- Run | Yrd Mat Sub Distress Signals . | . . . Communications Jammed . | . . . Distress Signals . | . . . Times Spotted 49 | . 45 4 Peak Tracking Total 4 | . 4 2 Tactical Retreats 3 | . 2 1 Traps | -11 -10 -10 ------- Run | Yrd Mat Sub Traps Triggered 3 | . 3 . Indirectly . | . . . Trap Hack Attempts . | . . . Triggered . | . . . Disarmed . | . . . Reprogrammed . | . . . Reused . | . . . Traps Extracted . | . . . Installed . | . . . Triggered . | . . . Machines | -11 -10 -10 ---------- Run | Yrd Mat Sub Machines Disabled . | . . . Max in Single Turn . | . . . Machines Repaired . | . . . Machines Dismantled . | . . . Machines Sabotaged . | . . . Overloaded Fab Kills . | . . . Hacking | -11 -10 -10 --------- Run | Yrd Mat Sub Machines Accessed 9 | . 9 . Terminals 6 | . 6 . Fabricators . | . . . Repair Stations 1 | . 1 . Recycling Units 2 | . 2 . Scanalyzers . | . . . Garrison Access . | . . . Total Hacks 35 | . 35 . Successful 22 | . 22 . Failed 13 | . 13 . Catastrophic 2 | . 2 . Database Lockouts . | . . . Manual 13 | . 13 . Terminals 23 | . 23 . Fabricators . | . . . Repair Stations 4 | . 4 . Recycling Units 8 | . 8 . Scanalyzers . | . . . Garrison Access . | . . . Terminal Hacks 8 | . 8 . Robot Analysis 2 | . 2 . Prototype ID Bank 1 | . 1 . Alert Level 1 | . 1 . Locate Traps 3 | . 3 . Surveillance Status 1 | . 1 . Fabricator Hacks . | . . . Repair Station Hacks 3 | . 3 . Scan Component 2 | . 2 . Refit 1 | . 1 . Recycling Unit Hacks 5 | . 5 . Report Inventory 3 | . 3 . Retrieve Components 2 | . 2 . Scanalyzer . | . . . Garrison Access Hacks . | . . . Unauthorized Hacks 6 | . 6 . Terminals 6 | . 6 . Botnet 5 | . 5 . Operators 1 | . 1 . Fabricators . | . . . Repair Stations . | . . . Recycling Units . | . . . Scanalyzers . | . . . Garrison Access . | . . . Data Cores Recovered . | . . . Used . | . . . Hacking Detections 7 | . 7 . Full Trace Events 4 | . 4 . Feedback Events . | . . . Feedback Blocked . | . . . Robot Schematics Acquired . | . . . Robots Built . | . . . Authchips . | . . . Time . | . . . Total Robot Build Rating . | . . . Part Schematics Acquired . | . . . Parts Built . | . . . Authchips . | . . . Time . | . . . Total Part Build Rating . | . . . Part Studies Acquired . | . . . Parts Repaired . | . . . Time . | . . . Parts Recycled . | . . . Recycled Matter . | . . . Retrieved Matter . | . . . Retrieved Components 12 | . 12 . Parts Scanalyzed . | . . . Part Schematics Acquired . | . . . Parts Damaged . | . . . Bothacking | -11 -10 -10 ------------ Run | Yrd Mat Sub Used RIF Installer . | . . . Robots Hacked . | . . . Non-combat . | . . . Combat . | . . . Robot Hacks Applied . | . . . Relay Couplers Released . | . . . Fabnet Peak Effective % . | . . . Robots Rewired . | . . . Allies Hacked . | . . . Hacks Repelled . | . . . Allies | -11 -10 -10 -------- Run | Yrd Mat Sub Total Allies . | . . . Largest Group . | . . . Highest-Rated Group . | . . . Highest-Rated Ally . | . . . Total Orders . | . . . Ally Attacks . | . . . Total Damage . | . . . Kills . | . . . Allies Corrupted . | . . . Allies Melted . | . . . Intel | -11 -10 -10 ------- Run | Yrd Mat Sub Active Infowar (turns) 2691 | 12 2152 527 Sensors 1515 | . 988 527 Seismic 1176 | 12 1164 . Robot Analysis Total 2 | . 2 . Derelict Logs Recovered 2 | . . 2 Drone Launches . | . . . Drone Recoveries . | . . . Exploration | -11 -10 -10 ------------- Run | Yrd Mat Sub Turns Passed 2809 | 128 2154 527 Spaces Moved 1659 | 57 1146 456 Core 67 | 2 64 1 Treads 665 | 55 610 . Legs . | . . . Wheels 826 | . 371 455 Hover 101 | . 101 . Flight . | . . . Fastest Speed 50 | 50 80 80 Average Speed 129 | 156 141 97 Slowest Speed 350 | 160 320 350 Overloaded Moves . | . . . Propulsion Burnouts . | . . . Robots Hopped . | . . . Potential Cave-ins . | . . . Cave-ins Triggered . | . . . Exploration Rate (%) 44 | 5 98 29 Regions Visited 2 Branch Regions 1 Pre-discovered Areas 1 | . . 1 Known Exits Taken . | . . . Unknown Exits Taken 2 | 1 1 . Scrap Searched . | . . . Spaces Dug . | . . . Terrain Destroyed 3 | . 3 . Melee . | . . . Projectile . | . . . AOE 3 | . 3 . Terrain Rammed . | . . . Walls Destroyed . | . . . Machines Disabled . | . . . Actions | -11 -10 -10 --------- Run | Yrd Mat Sub Total 2047 | 75 1474 498 Wait 170 | . 153 17 Move 1657 | 56 1145 456 Hop . | . . . Pick Up 12 | 2 10 . Fast Attach 16 | 7 9 . Attach 6 | . 4 2 Detach 7 | . 7 . Swap 6 | . 6 . Drop 13 | . 12 1 Fire 155 | 10 123 22 Melee . | . . . Ram 3 | . 3 . Kick . | . . . Crush 2 | . 2 . Escape Stasis . | . . . Rewire . | . . . Trap . | . . . Miscellaneous . | . . . Route ------- -11/Scrapyard -10/Materials (discovered 6 exits: [*Mat x3] / [*Min x2] / [*Sub]) -10/Subcaves History --------- Turn | Location | Event 9 | -11/Scrapyard | Discovered new exit (range 15) 129 | -11/Scrapyard | Entered Materials 318 | -10/Materials | Build established: Mutant 584 | -10/Materials | Discovered new exit (range 7) 1325 | -10/Materials | Discovered new exit (range 16) 1434 | -10/Materials | Core integrity fell below 50% 1451 | -10/Materials | Discovered new exit (range 16) 1896 | -10/Materials | Discovered new exit (range 16) 2043 | -10/Materials | Discovered new exit (range 10) 2256 | -10/Materials | Discovered new exit (range 12) 2283 | -10/Materials | Entered Subcaves 2286 | -10/Subcaves | Learned Materials terminal intel 2342 | -10/Subcaves | A swath of the cavern ceiling suddenly collapsed 2461 | -10/Subcaves | Learned location of Zion (-6) 2461 | -10/Subcaves | Met a Zionite searching for "candidates" 2587 | -10/Subcaves | Visited 4L-MR0's lab 2627 | -10/Subcaves | Ambushed by Subdwellers from Twisted Machinery 2669 | -10/Subcaves | Core integrity fell below 20% 2767 | -10/Subcaves | Ambushed by Subdwellers from Twisted Machinery 2810 | -10/Subcaves | Destroyed by WE-2XR(R) with Subdweller Laser Last Messages --------------- collapses. 02447_ KW-B85(z): "She is not going to be happy we haven't found any suitable candidates yet." 02461_ KW-B85(z): "Hey you! It's really dangerous down here, I feel that you could die at any moment. For your health and safety might I suggest a trip to Zion?" World map updated: -6/Zion. 02474_ Acquired 14 matter. 02476_ Acquired derelict log, extracted data. Data stored: Mines entrances (x2). 02490_ KU-1AR(O) collects matter. 02627_ WE-2XR(R) emerges from the Twisted Machinery. 02635_ Wheel destroyed. 02670_ Hvy. EM Pulse Gun destroyed. 02787_ Wheel destroyed. 02795_ Acquired 8 matter. 02797_ Acquired 6 matter. 02808_ Wheel destroyed. Map ----- +----------------------------------------------------+ | "" "# #"" #??????????????????????????????????????? | | # #####?"""??????????????????????????????????????? | | # #???# ##?????????????????????????????????????? | | #### ##????????????????????????????????????? | | ## ##???????????????????????????????????? | | # #???????????????????????????????????? | | # ##??????????????????????????????????? | | ## #??????????????????????????????????? | | ?### ## ##?????????????????????????????????? | | ??## ### #?????????????????????????????????? | | ### #### #?????????????????????????????????? | | # ### #?????????????????????????????????? | | #?????????????????????????????????? | | ## #?????????????????????????????????? | | ### ##?####???####?????####?????????????????? | | ##?# ##??####??## ##?### ####??????????????? | | #??# #??## ##?# ## #??????????????? | | #?## ##??# #?? #??????????????? | | ### ##### ##?? #??????????????? | | ### ## R ##?# #??????????????? | | ?# ## R ### #??????????????? | | ?# ### %## % ???????????????? | | ?# ### ## #??????????????????? | | ## ## ### #???????????????????? | | # ### ##???????????????????? | | # %% #?# #### ###@ ##????????????????????? | | ## ### #######??###?####?????????????????????? | | ?## #?# ##??####???????????????????????????? | | ??## #?## ## ##??????????????????????????? | | ???####??### #??????????????????????????? | | ##### ##??## #??????????????????????????? | | # #?## ## """#??????????????????????????? | | # ### ##??? ??????????????????????????? | | # ##?????????????????????????????????? | | ##??????????????????????????????????? | | #####???????????????????????????????????? | | # # ###???????????????????????????????????????? | | ### ##?????????????????????????????????????????? | | ??# ##??????????????????????????????????????????? | | ??####???????????????????????????????????????????? | | ?????????????????????????????????????????????????? | | ?????????????????????????????????????????????????? | | ?????????????????????????????????????????????????? | | ?????????????????????????????????????????????????? | | ?????????????????????????????????????????????????? | | ?????????????????????????????????????????????????? | | ?????????????????????????????????????????????????? | | ?????????????????????????????????????????????????? | | ?????????????????????????????????????????????????? | | ?????????????????????????????????????????????????? | +----------------------------------------------------+ Best States ------------- Heat Dissipation 25 Energy Generation 12 Energy Capacity 265 Matter Stores 300 Matter Capacity 300 Sight Range 16 Robot Scan Range 14 Terrain Scan Density 10 Armor Coverage 150 Evasion (%) 44 Recoil Reduction 2 Item Schematics ----------------- None Robot Schematics ------------------ None Fabricated ------------ Nothing Repaired ---------- Nothing Studied --------- None Alien Tech Used ----------------- None Achievements -------------- Fitting Room Challenges ------------ None Game ------ Seed BoltThermoelectricRouter Manual? 0 Play Time 00:27:25 Cumulative 93.8 hours Start 2025.10.30 @ 00:18:34 End 2025.10.30 @ 00:42:45 Sessions 1 Manual Loads 0 Difficulty Rogue Special Mode None Game No. 96 Rogue 96 Adventurer 0 Explorer 0 Win Type - Total 0 Types 0/0/0/0/0/0/0/0/0/0 Lore% 21 Gallery% 42 Achievement% 27 Wizard Run 0 Options --------- Layout 1 ASCII 0 Keyboard 0 Movement Numpad Keybinds 0 Fullscreen 1 Font 24/Proggy Map View 50x35 Zoom Use 0% Tactical HUD 1 Map Filters NONE Filters NONE Steam 1 RUN: 0f851ec1-6bf8-4bb4-ba06-2c16a81dac37